[Event "European Rapid Championship 2021"]
[Site "Katowice"]
[Date "2021.12.19"]
[Round "10.21"]
[White "Mirski, Michal"]
[Black "Froewis, Annika"]
[Result "1-0"]
[ECO "C50"]
[WhiteElo "1852"]
[BlackElo "2079"]
[Annotator "NA"]
[PlyCount "75"]
[EventDate "2021.12.18"]
[EventType "swiss"]
[EventCountry "POL"]
[SourceTitle "playchess.com"]
[Source "ChessBase"]
[SourceQuality "1"]
[TimeControl "900+10"]

1. e4 {[%emt 0:00:02]} e5 {[%emt 0:00:03]} 2. Nf3 {[%emt 0:00:03]} Nc6 {
[%emt 0:00:02]} 3. Bc4 {[%emt 0:00:02]} Bc5 {[%emt 0:00:02]} 4. O-O {[%emt 0:
00:01]} Nf6 {[%emt 0:00:02]} 5. d3 {[%emt 0:00:02]} d6 {[%emt 0:00:16]} 6. c3 {
[%emt 0:00:02]} a6 {[%emt 0:00:38]} 7. Bb3 {[%emt 0:00:02]} Ba7 {[%emt 0:00:06]
} 8. Nbd2 {[%emt 0:00:35]} O-O {[%emt 0:00:12]} 9. Re1 {[%emt 0:00:54]} Ne7 {
[%emt 0:00:13]} 10. Nf1 {[%emt 0:00:10]} Ng6 {[%emt 0:00:02]} 11. Ng3 {[%emt 0:
00:20]} Be6 {[%emt 0:00:04]} 12. Bg5 {[%emt 0:01:54]} h6 {[%emt 0:00:23]} 13.
Be3 {[%emt 0:00:10]} Re8 {[%emt 0:00:11]} 14. Bxe6 {[%emt 0:00:43]} fxe6 {
[%emt 0:00:19]} 15. Bxa7 {[%emt 0:00:06]} Rxa7 {[%emt 0:00:01]} 16. d4 {
[%emt 0:00:07]} exd4 {[%emt 0:01:22]} 17. cxd4 {[%emt 0:00:06]} c5 {[%emt 0:03:
54]} 18. Rc1 {[%emt 0:02:19]} b6 {[%emt 0:00:17]} 19. e5 {[%emt 0:00:17]} dxe5
{[%emt 0:00:51]} 20. dxc5 {[%emt 0:00:10]} Rd7 {[%emt 0:01:41]} 21. Qc2 {
[%emt 0:00:27]} Nf4 {[%emt 0:01:22]} 22. c6 {[%emt 0:01:39]} Rd5 {[%emt 0:00:
59]} 23. c7 {[%emt 0:00:22]} Qc8 {[%emt 0:00:34]} 24. Nxe5 {[%emt 0:00:47]} Re7
{[%emt 0:01:22]} 25. Qa4 {[%emt 0:03:37]} g5 {[%emt 0:03:04]} 26. Nc6 {[%emt 0:
00:52]} Re8 {[%emt 0:01:13]} 27. Na7 {[%emt 0:00:13]} Qb7 {[%emt 0:00:05]} 28.
Qxe8+ {[%emt 0:01:19]} Nxe8 {[%emt 0:00:04]} 29. c8=Q {[%emt 0:00:03]} Qxc8 {
[%emt 0:00:22]} 30. Rxc8 {[%emt 0:00:29]} Kf7 {[%emt 0:00:07]} 31. Rc6 {
[%emt 0:00:43]} Nd3 {[%emt 0:00:15]} 32. Rf1 {[%emt 0:00:24]} Rd7 {[%emt 0:00:
10]} 33. Nc8 {[%emt 0:00:05]} Nxb2 {[%emt 0:00:08]} 34. Rxb6 {[%emt 0:00:08]}
Nc4 {[%emt 0:00:12]} 35. Rxa6 {[%emt 0:00:10]} Kf6 {[%emt 0:00:11]} 36. a4 {
[%emt 0:00:31]} Nd2 {[%emt 0:00:09]} 37. Re1 {[%emt 0:00:05]} Nc7 {[%emt 0:00:
08]} 38. Rd6 {[%emt 0:00:06]} 1-0

[Event "European Rapid Championship 2021"]
[Site "Katowice"]
[Date "2021.12.19"]
[Round "10.22"]
[White "Solys, Laimutis"]
[Black "Druckenthaner, Andreas"]
[Result "1-0"]
[ECO "B00"]
[WhiteElo "2300"]
[BlackElo "2291"]
[Annotator "NA"]
[PlyCount "65"]
[EventDate "2021.12.18"]
[EventType "swiss"]
[EventCountry "POL"]
[SourceTitle "playchess.com"]
[Source "ChessBase"]
[SourceQuality "1"]
[TimeControl "900+10"]

1. e4 {[%emt 0:00:02]} Nc6 {[%emt 0:00:01]} 2. Nf3 {[%emt 0:00:11]} d6 {
[%emt 0:00:03]} 3. d4 {[%emt 0:00:37]} Nf6 {[%emt 0:00:02]} 4. Nc3 {[%emt 0:00:
02]} g6 {[%emt 0:00:02]} 5. h3 {[%emt 0:01:02]} Bg7 {[%emt 0:00:02]} 6. Be3 {
[%emt 0:00:05]} O-O {[%emt 0:00:05]} 7. Qd2 {[%emt 0:00:05]} a6 {[%emt 0:00:28]
} 8. a4 {[%emt 0:01:13]} a5 {[%emt 0:00:43]} 9. d5 {[%emt 0:00:14]} Nb4 {
[%emt 0:00:10]} 10. Bc4 {[%emt 0:00:31]} Re8 {[%emt 0:01:38]} 11. O-O {[%emt 0:
00:52]} e6 {[%emt 0:00:13]} 12. Bg5 {[%emt 0:00:16]} e5 {[%emt 0:00:46]} 13.
Rae1 {[%emt 0:00:31]} Qe7 {[%emt 0:02:06]} 14. Nh2 {[%emt 0:00:16]} Qf8 {
[%emt 0:00:56]} 15. Nb5 {[%emt 0:00:18]} Na6 {[%emt 0:00:33]} 16. f3 {[%emt 0:
03:41]} Nd7 {[%emt 0:01:36]} 17. b3 {[%emt 0:00:57]} f5 {[%emt 0:01:28]} 18.
Qxa5 {[%emt 0:00:19]} Nb6 {[%emt 0:01:08]} 19. Nxc7 {[%emt 0:02:04]} Nxc4 {
[%emt 0:00:04]} 20. bxc4 {[%emt 0:00:01]} Nxc7 {[%emt 0:00:05]} 21. Qxc7 {
[%emt 0:00:02]} Rxa4 {[%emt 0:00:04]} 22. c5 {[%emt 0:00:05]} Rc4 {[%emt 0:01:
05]} 23. Qxd6 {[%emt 0:01:19]} Rxc5 {[%emt 0:00:29]} 24. Qb6 {[%emt 0:00:01]}
Rxc2 {[%emt 0:00:55]} 25. Rc1 {[%emt 0:00:05]} Rxc1 {[%emt 0:00:24]} 26. Rxc1 {
[%emt 0:00:01]} Bh6 {[%emt 0:00:10]} 27. Bxh6 {[%emt 0:01:45]} Qxh6 {[%emt 0:
00:02]} 28. Rc7 {[%emt 0:00:04]} Qf8 {[%emt 0:01:44]} 29. Nf1 {[%emt 0:00:15]}
fxe4 {[%emt 0:00:18]} 30. fxe4 {[%emt 0:00:01]} Re7 {[%emt 0:00:52]} 31. Ne3 {
[%emt 0:00:55]} Qd8 {[%emt 0:00:16]} 32. d6 {[%emt 0:00:21]} Re6 {[%emt 0:00:
33]} 33. Rg7+ {[%emt 0:00:06]} 1-0

[Event "European Rapid Championship 2021"]
[Site "Katowice"]
[Date "2021.12.19"]
[Round "10.22"]
[White "Rigopoulos-Tsigkos, Alexandros"]
[Black "Rudecki, Bartosz"]
[Result "1/2-1/2"]
[ECO "C63"]
[WhiteElo "2076"]
[BlackElo "1820"]
[Annotator "NA"]
[PlyCount "48"]
[EventDate "2021.12.18"]
[EventType "swiss"]
[EventCountry "POL"]
[SourceTitle "playchess.com"]
[Source "ChessBase"]
[SourceQuality "1"]
[TimeControl "900+10"]

1. e4 {[%emt 0:01:09]} e5 {[%emt 0:00:04]} 2. Nf3 {[%emt 0:00:03]} Nc6 {
[%emt 0:00:03]} 3. Bb5 {[%emt 0:00:01]} f5 {[%emt 0:00:02]} 4. d3 {[%emt 0:00:
06]} fxe4 {[%emt 0:00:02]} 5. dxe4 {[%emt 0:00:02]} Nf6 {[%emt 0:00:01]} 6. Bg5
{[%emt 0:01:16]} Bc5 {[%emt 0:00:18]} 7. Bxc6 {[%emt 0:01:27]} bxc6 {[%emt 0:
00:09]} 8. O-O {[%emt 0:00:56]} d6 {[%emt 0:00:08]} 9. h3 {[%emt 0:00:28]} O-O
{[%emt 0:00:07]} 10. Nbd2 {[%emt 0:00:22]} Qe8 {[%emt 0:00:05]} 11. Bxf6 {
[%emt 0:02:18]} Rxf6 {[%emt 0:00:07]} 12. Nb3 {[%emt 0:00:01]} Bb6 {[%emt 0:00:
13]} 13. Qd3 {[%emt 0:03:05]} Qg6 {[%emt 0:00:37]} 14. Kh2 {[%emt 0:00:41]} Be6
{[%emt 0:00:21]} 15. c4 {[%emt 0:00:40]} Raf8 {[%emt 0:00:46]} 16. Nxe5 {
[%emt 0:01:15]} Qg5 {[%emt 0:02:29]} 17. Nxc6 {[%emt 0:01:51]} Rf3 {[%emt 0:01:
29]} 18. gxf3 {[%emt 0:01:50]} Qf4+ {[%emt 0:01:47]} 19. Kg2 {[%emt 0:00:03]}
Bxh3+ {[%emt 0:01:17]} 20. Kxh3 {[%emt 0:00:01]} Qh6+ {[%emt 0:04:39]} 21. Kg2
{[%emt 0:00:23]} Qg5+ {[%emt 0:00:30]} 22. Kh2 {[%emt 0:00:25]} Qh4+ {[%emt 0:
00:32]} 23. Kg2 {[%emt 0:00:03]} Qg5+ {[%emt 0:00:52]} 24. Kh3 {[%emt 0:00:01]}
Qh5+ {[%emt 0:00:03]} 1/2-1/2

[Event "European Rapid Championship 2021"]
[Site "Katowice"]
[Date "2021.12.19"]
[Round "10.23"]
[White "Kozak, Antoni"]
[Black "Pacuszka, Tomasz"]
[Result "1-0"]
[ECO "A44"]
[WhiteElo "2356"]
[BlackElo "2193"]
[Annotator "NA"]
[PlyCount "53"]
[EventDate "2021.12.18"]
[EventType "swiss"]
[EventCountry "POL"]
[SourceTitle "playchess.com"]
[Source "ChessBase"]
[SourceQuality "1"]
[TimeControl "900+10"]

1. d4 {[%emt 0:00:03]} c5 {[%emt 0:00:12]} 2. d5 {[%emt 0:00:02]} e5 {[%emt 0:
00:02]} 3. e4 {[%emt 0:00:47]} d6 {[%emt 0:00:02]} 4. Bb5+ {[%emt 0:01:05]} Bd7
{[%emt 0:00:08]} 5. a4 {[%emt 0:00:06]} a6 {[%emt 0:00:02]} 6. Bxd7+ {[%emt 0:
00:52]} Nxd7 {[%emt 0:00:06]} 7. Nc3 {[%emt 0:00:07]} Ngf6 {[%emt 0:00:07]} 8.
Nf3 {[%emt 0:00:20]} Be7 {[%emt 0:00:03]} 9. O-O {[%emt 0:00:47]} O-O {[%emt 0:
00:02]} 10. Nd2 {[%emt 0:00:24]} Ne8 {[%emt 0:00:16]} 11. a5 {[%emt 0:00:25]}
Nc7 {[%emt 0:00:45]} 12. Nc4 {[%emt 0:00:10]} Nb5 {[%emt 0:00:13]} 13. Qd3 {
[%emt 0:01:19]} Nxc3 {[%emt 0:02:39]} 14. bxc3 {[%emt 0:00:15]} g6 {[%emt 0:00:
33]} 15. f4 {[%emt 0:00:37]} exf4 {[%emt 0:02:47]} 16. Bxf4 {[%emt 0:00:01]}
Nf6 {[%emt 0:00:04]} 17. Rab1 {[%emt 0:00:32]} Rb8 {[%emt 0:00:26]} 18. e5 {
[%emt 0:02:05]} Nh5 {[%emt 0:00:24]} 19. exd6 {[%emt 0:00:33]} Bg5 {[%emt 0:01:
35]} 20. Bxg5 {[%emt 0:03:02]} Qxg5 {[%emt 0:00:02]} 21. Rbe1 {[%emt 0:00:19]}
Rbe8 {[%emt 0:01:28]} 22. Rxe8 {[%emt 0:00:32]} Rxe8 {[%emt 0:00:01]} 23. d7 {
[%emt 0:00:02]} Rd8 {[%emt 0:00:35]} 24. Nb6 {[%emt 0:00:01]} Kg7 {[%emt 0:02:
11]} 25. Qe4 {[%emt 0:01:25]} h6 {[%emt 0:01:58]} 26. h4 {[%emt 0:00:23]} Ng3 {
[%emt 0:00:37]} 27. Rxf7+ {[%emt 0:00:09]} 1-0

[Event "European Rapid Championship 2021"]
[Site "Katowice"]
[Date "2021.12.19"]
[Round "10.23"]
[White "Koubova, Anna Marie"]
[Black "Brzezinski, Mateusz"]
[Result "0-1"]
[ECO "D80"]
[WhiteElo "1837"]
[BlackElo "2187"]
[Annotator "NA"]
[PlyCount "82"]
[EventDate "2021.12.18"]
[EventType "swiss"]
[EventCountry "POL"]
[SourceTitle "playchess.com"]
[Source "ChessBase"]
[SourceQuality "1"]
[TimeControl "900+10"]

1. d4 {[%emt 0:00:03]} Nf6 {[%emt 0:00:02]} 2. c4 {[%emt 0:00:02]} g6 {[%emt 0:
00:04]} 3. Nc3 {[%emt 0:00:03]} d5 {[%emt 0:00:01]} 4. Bg5 {[%emt 0:02:00]} Bg7
{[%emt 0:00:22]} 5. Bxf6 {[%emt 0:00:31]} Bxf6 {[%emt 0:00:02]} 6. Nxd5 {
[%emt 0:00:07]} Bg7 {[%emt 0:00:01]} 7. Nf3 {[%emt 0:00:08]} c5 {[%emt 0:00:22]
} 8. e3 {[%emt 0:02:00]} Nc6 {[%emt 0:00:04]} 9. Be2 {[%emt 0:00:21]} e6 {
[%emt 0:00:14]} 10. Nc3 {[%emt 0:00:10]} cxd4 {[%emt 0:00:05]} 11. exd4 {
[%emt 0:00:08]} Nxd4 {[%emt 0:01:05]} 12. Nxd4 {[%emt 0:01:49]} Bxd4 {[%emt 0:
00:03]} 13. O-O {[%emt 0:00:06]} O-O {[%emt 0:00:11]} 14. Bf3 {[%emt 0:00:40]}
Rb8 {[%emt 0:02:10]} 15. Nb5 {[%emt 0:02:04]} Bc5 {[%emt 0:00:27]} 16. Qe2 {
[%emt 0:00:55]} a6 {[%emt 0:00:49]} 17. Qe5 {[%emt 0:00:42]} Bd7 {[%emt 0:02:
05]} 18. Qxc5 {[%emt 0:00:09]} axb5 {[%emt 0:00:51]} 19. cxb5 {[%emt 0:00:03]}
b6 {[%emt 0:00:08]} 20. Qb4 {[%emt 0:01:01]} Qg5 {[%emt 0:00:15]} 21. Bc6 {
[%emt 0:01:16]} Rfd8 {[%emt 0:00:01]} 22. Rac1 {[%emt 0:00:30]} e5 {[%emt 0:00:
05]} 23. f4 {[%emt 0:00:47]} Qh4 {[%emt 0:00:40]} 24. Bd5 {[%emt 0:00:51]} Be8
{[%emt 0:00:15]} 25. Qc4 {[%emt 0:00:27]} e4 {[%emt 0:02:30]} 26. Bxe4 {
[%emt 0:00:46]} Qf6 {[%emt 0:00:01]} 27. Bc6 {[%emt 0:01:31]} Qxb2 {[%emt 0:00:
11]} 28. f5 {[%emt 0:00:15]} g5 {[%emt 0:00:02]} 29. f6 {[%emt 0:00:17]} Rd2 {
[%emt 0:00:36]} 30. Qg4 {[%emt 0:00:09]} h6 {[%emt 0:00:13]} 31. h4 {[%emt 0:
00:11]} Rd4 {[%emt 0:00:05]} 32. Be4 {[%emt 0:00:16]} Qd2 {[%emt 0:00:20]} 33.
Rce1 {[%emt 0:00:09]} Bd7 {[%emt 0:00:40]} 34. Qh5 {[%emt 0:00:02]} g4 {
[%emt 0:00:01]} 35. Qe5 {[%emt 0:00:15]} Re8 {[%emt 0:00:04]} 36. Qf4 {[%emt 0:
00:07]} Qxf4 {[%emt 0:00:34]} 37. Rxf4 {[%emt 0:00:01]} g3 {[%emt 0:00:58]} 38.
a4 {[%emt 0:00:26]} Rxa4 {[%emt 0:00:01]} 39. Kf1 {[%emt 0:00:10]} Bxb5+ {
[%emt 0:00:08]} 40. Kg1 {[%emt 0:00:04]} Bc6 {[%emt 0:00:18]} 41. Rg4+ {
[%emt 0:00:07]} Kf8 {[%emt 0:00:18]} 0-1

[Event "European Rapid Championship 2021"]
[Site "Katowice"]
[Date "2021.12.19"]
[Round "10.24"]
[White "Grochol, Kamil"]
[Black "Praczukowski, Stanislaw"]
[Result "0-1"]
[ECO "D00"]
[WhiteElo "1994"]
[BlackElo "2082"]
[Annotator "NA"]
[PlyCount "118"]
[EventDate "2021.12.18"]
[EventType "swiss"]
[EventCountry "POL"]
[SourceTitle "playchess.com"]
[Source "ChessBase"]
[SourceQuality "1"]
[TimeControl "900+10"]

1. d4 {[%emt 0:01:07]} d5 {[%emt 0:00:22]} 2. Bf4 {[%emt 0:00:04]} Nf6 {
[%emt 0:00:07]} 3. e3 {[%emt 0:00:02]} c5 {[%emt 0:00:07]} 4. c3 {[%emt 0:00:
02]} Nc6 {[%emt 0:00:17]} 5. Nd2 {[%emt 0:00:03]} cxd4 {[%emt 0:00:37]} 6. exd4
{[%emt 0:00:02]} Bf5 {[%emt 0:00:01]} 7. Ngf3 {[%emt 0:00:04]} e6 {[%emt 0:00:
03]} 8. Qb3 {[%emt 0:00:19]} Qc8 {[%emt 0:00:16]} 9. Nh4 {[%emt 0:00:10]} Be4 {
[%emt 0:00:41]} 10. Nxe4 {[%emt 0:00:07]} dxe4 {[%emt 0:00:05]} 11. Be2 {
[%emt 0:00:20]} h6 {[%emt 0:00:22]} 12. g3 {[%emt 0:01:19]} Be7 {[%emt 0:05:06]
} 13. Ng2 {[%emt 0:01:00]} O-O {[%emt 0:00:10]} 14. O-O {[%emt 0:00:44]} Rd8 {
[%emt 0:00:34]} 15. Rad1 {[%emt 0:01:18]} Qd7 {[%emt 0:00:29]} 16. h4 {[%emt 0:
01:49]} Rac8 {[%emt 0:00:12]} 17. Rfe1 {[%emt 0:00:44]} Bd6 {[%emt 0:01:14]}
18. Bxd6 {[%emt 0:00:25]} Qxd6 {[%emt 0:00:02]} 19. Ne3 {[%emt 0:00:38]} Rb8 {
[%emt 0:00:21]} 20. Nc4 {[%emt 0:01:39]} Qc7 {[%emt 0:00:21]} 21. a4 {[%emt 0:
00:47]} Na5 {[%emt 0:01:06]} 22. Nxa5 {[%emt 0:00:08]} Qxa5 {[%emt 0:00:01]}
23. Qb5 {[%emt 0:00:28]} Qc7 {[%emt 0:00:07]} 24. a5 {[%emt 0:00:04]} Rd5 {
[%emt 0:01:03]} 25. Qb3 {[%emt 0:00:44]} e3 {[%emt 0:00:26]} 26. Bf3 {[%emt 0:
00:56]} exf2+ {[%emt 0:00:07]} 27. Kxf2 {[%emt 0:00:02]} Rxa5 {[%emt 0:00:10]}
28. Re2 {[%emt 0:02:50]} Rf5 {[%emt 0:00:29]} 29. Kg2 {[%emt 0:00:16]} Nh5 {
[%emt 0:00:27]} 30. Bxh5 {[%emt 0:00:13]} Rxh5 {[%emt 0:00:01]} 31. Rf1 {
[%emt 0:00:15]} Qc6+ {[%emt 0:00:15]} 32. Kg1 {[%emt 0:00:58]} Rb5 {[%emt 0:00:
21]} 33. Qd1 {[%emt 0:00:29]} Rd8 {[%emt 0:00:11]} 34. Ref2 {[%emt 0:00:03]}
Rd7 {[%emt 0:00:01]} 35. Qd3 {[%emt 0:00:16]} Rbd5 {[%emt 0:00:23]} 36. Qf3 {
[%emt 0:00:17]} Qd6 {[%emt 0:00:27]} 37. Kg2 {[%emt 0:00:08]} Rf5 {[%emt 0:00:
07]} 38. Qe4 {[%emt 0:00:13]} Qd5 {[%emt 0:00:21]} 39. Qxd5 {[%emt 0:00:01]}
Rxf2+ {[%emt 0:00:04]} 40. Kxf2 {[%emt 0:00:04]} Rxd5 {[%emt 0:00:01]} 41. Ke3
{[%emt 0:00:01]} Ra5 {[%emt 0:00:14]} 42. c4 {[%emt 0:00:37]} Kf8 {[%emt 0:00:
11]} 43. Rd1 {[%emt 0:00:22]} Ke7 {[%emt 0:00:02]} 44. Kd3 {[%emt 0:00:06]} a6
{[%emt 0:00:07]} 45. Kc3 {[%emt 0:00:14]} Rf5 {[%emt 0:00:02]} 46. Rd3 {
[%emt 0:00:06]} f6 {[%emt 0:00:32]} 47. Kb4 {[%emt 0:00:14]} g5 {[%emt 0:00:06]
} 48. hxg5 {[%emt 0:00:05]} hxg5 {[%emt 0:00:03]} 49. c5 {[%emt 0:00:14]} Kd7 {
[%emt 0:00:01]} 50. Ka5 {[%emt 0:00:01]} Kc6 {[%emt 0:00:19]} 51. Rb3 {[%emt 0:
00:10]} e5 {[%emt 0:00:26]} 52. Rb6+ {[%emt 0:00:16]} Kc7 {[%emt 0:00:02]} 53.
d5 {[%emt 0:00:12]} e4 {[%emt 0:00:10]} 54. d6+ {[%emt 0:00:12]} Kc8 {[%emt 0:
00:01]} 55. b4 {[%emt 0:00:10]} e3 {[%emt 0:00:15]} 56. d7+ {[%emt 0:00:03]}
Kxd7 {[%emt 0:00:01]} 57. Rxb7+ {[%emt 0:00:04]} Kc8 {[%emt 0:00:03]} 58. Kxa6
{[%emt 0:00:23]} e2 {[%emt 0:00:06]} 59. Re7 {[%emt 0:00:10]} Re5 {[%emt 0:00:
01]} 0-1

[Event "European Rapid Championship 2021"]
[Site "Katowice"]
[Date "2021.12.19"]
[Round "10.24"]
[White "Rudzinska, Michalina"]
[Black "Kowalski, Igor"]
[Result "0-1"]
[ECO "C03"]
[WhiteElo "1962"]
[BlackElo "2295"]
[Annotator "NA"]
[PlyCount "62"]
[EventDate "2021.12.18"]
[EventType "swiss"]
[EventCountry "POL"]
[SourceTitle "playchess.com"]
[Source "ChessBase"]
[SourceQuality "1"]
[TimeControl "900+10"]

1. e4 {[%emt 0:00:01]} e6 {[%emt 0:00:13]} 2. d4 {[%emt 0:00:03]} d5 {[%emt 0:
00:01]} 3. Nd2 {[%emt 0:00:02]} Be7 {[%emt 0:00:02]} 4. e5 {[%emt 0:00:21]} c5
{[%emt 0:00:01]} 5. c3 {[%emt 0:00:01]} Nc6 {[%emt 0:00:02]} 6. Ndf3 {[%emt 0:
00:14]} Qb6 {[%emt 0:00:15]} 7. Bd3 {[%emt 0:00:03]} Bd7 {[%emt 0:00:10]} 8.
Ne2 {[%emt 0:00:03]} cxd4 {[%emt 0:00:54]} 9. cxd4 {[%emt 0:00:02]} Bb4+ {
[%emt 0:00:01]} 10. Kf1 {[%emt 0:00:03]} f5 {[%emt 0:03:19]} 11. h4 {[%emt 0:
02:22]} Nd8 {[%emt 0:01:12]} 12. Nf4 {[%emt 0:00:09]} Nf7 {[%emt 0:00:50]} 13.
Be3 {[%emt 0:01:11]} Ngh6 {[%emt 0:00:40]} 14. Ng5 {[%emt 0:00:34]} Be7 {
[%emt 0:02:12]} 15. Nfh3 {[%emt 0:02:00]} Nxg5 {[%emt 0:02:35]} 16. Nxg5 {
[%emt 0:02:11]} Ng4 {[%emt 0:00:05]} 17. Be2 {[%emt 0:01:07]} Nxe3+ {[%emt 0:
00:22]} 18. fxe3 {[%emt 0:00:01]} Bxg5 {[%emt 0:02:58]} 19. hxg5 {[%emt 0:00:
02]} O-O {[%emt 0:00:25]} 20. Qe1 {[%emt 0:02:06]} g6 {[%emt 0:00:15]} 21. Rh6
{[%emt 0:00:30]} Rac8 {[%emt 0:00:44]} 22. Qh4 {[%emt 0:00:15]} Rf7 {[%emt 0:
00:02]} 23. Kf2 {[%emt 0:03:22]} Rc2 {[%emt 0:00:47]} 24. Rh1 {[%emt 0:00:25]}
Qa6 {[%emt 0:00:26]} 25. Re1 {[%emt 0:01:52]} Bb5 {[%emt 0:00:06]} 26. Kg3 {
[%emt 0:00:13]} Rxe2 {[%emt 0:00:10]} 27. Rh1 {[%emt 0:00:04]} Rxe3+ {[%emt 0:
00:02]} 28. Kf2 {[%emt 0:00:02]} Re2+ {[%emt 0:00:27]} 29. Kf3 {[%emt 0:00:01]}
Bd7 {[%emt 0:00:17]} 30. Rxg6+ {[%emt 0:00:34]} Kf8 {[%emt 0:00:01]} 31. Qh6+ {
[%emt 0:00:10]} Ke7 {[%emt 0:00:01]} 0-1

[Event "European Rapid Championship 2021"]
[Site "Katowice"]
[Date "2021.12.19"]
[Round "10.25"]
[White "Wisniewski, Adrian"]
[Black "Kowalczyk, Mariusz"]
[Result "0-1"]
[ECO "B00"]
[WhiteElo "2351"]
[BlackElo "2047"]
[Annotator "NA"]
[PlyCount "106"]
[EventDate "2021.12.18"]
[EventType "swiss"]
[EventCountry "POL"]
[SourceTitle "playchess.com"]
[Source "ChessBase"]
[SourceQuality "1"]
[TimeControl "900+10"]

1. e4 d6 2. d4 {[%emt 0:00:09]} c6 {[%emt 0:00:14]} 3. Nf3 {[%emt 0:00:10]} Qc7
{[%emt 0:00:09]} 4. e5 {[%emt 0:00:17]} dxe5 {[%emt 0:00:25]} 5. dxe5 {[%emt 0:
00:20]} Bg4 {[%emt 0:02:02]} 6. Qd4 {[%emt 0:00:28]} Bxf3 {[%emt 0:00:42]} 7.
gxf3 {[%emt 0:00:02]} Nd7 {[%emt 0:00:01]} 8. f4 {[%emt 0:00:33]} e6 {[%emt 0:
00:19]} 9. Nc3 {[%emt 0:00:56]} Bc5 {[%emt 0:00:16]} 10. Qc4 {[%emt 0:01:17]}
Ne7 {[%emt 0:01:08]} 11. Ne4 {[%emt 0:02:50]} b5 {[%emt 0:00:26]} 12. Qe2 {
[%emt 0:00:24]} Nd5 {[%emt 0:00:43]} 13. Be3 {[%emt 0:00:45]} Be7 {[%emt 0:01:
11]} 14. O-O-O {[%emt 0:01:47]} Qa5 {[%emt 0:01:48]} 15. Kb1 {[%emt 0:00:19]}
Qb4 {[%emt 0:00:44]} 16. Bd2 {[%emt 0:00:37]} Qa4 {[%emt 0:00:12]} 17. Bg2 {
[%emt 0:00:34]} N7b6 {[%emt 0:01:00]} 18. Nc3 {[%emt 0:01:50]} Qc4 {[%emt 0:02:
37]} 19. Bxd5 {[%emt 0:01:42]} cxd5 {[%emt 0:00:17]} 20. Qxc4 {[%emt 0:00:57]}
bxc4 {[%emt 0:00:02]} 21. Be3 {[%emt 0:00:03]} Rb8 {[%emt 0:00:43]} 22. f5 {
[%emt 0:00:30]} Bb4 {[%emt 0:00:37]} 23. Ne2 g6 {[%emt 0:00:44]} 24. fxe6 {
[%emt 0:00:11]} fxe6 {[%emt 0:00:01]} 25. h4 {[%emt 0:00:26]} Kf7 {[%emt 0:01:
29]} 26. h5 {[%emt 0:00:38]} Be7 {[%emt 0:00:35]} 27. hxg6+ {[%emt 0:00:39]}
hxg6 {[%emt 0:00:00]} 28. b3 {[%emt 0:00:00]} cxb3 {[%emt 0:00:21]} 29. axb3
Rbc8 {[%emt 0:00:43]} 30. Nf4 {[%emt 0:00:57]} Nd7 {[%emt 0:00:04]} 31. Nd3 {
[%emt 0:00:05]} a5 {[%emt 0:00:07]} 32. Rdg1 {[%emt 0:00:08]} Bb4 {[%emt 0:00:
25]} 33. f4 {[%emt 0:00:08]} Bc3 {[%emt 0:00:04]} 34. Rxh8 {[%emt 0:00:40]}
Rxh8 {[%emt 0:00:01]} 35. Nc1 d4 {[%emt 0:00:21]} 36. Bf2 {[%emt 0:00:10]} Rh2
{[%emt 0:00:10]} 37. Rf1 {[%emt 0:00:01]} Nc5 {[%emt 0:00:09]} 38. Bg1 {
[%emt 0:00:37]} Rg2 {[%emt 0:00:08]} 39. Na2 {[%emt 0:00:06]} Ne4 {[%emt 0:00:
04]} 40. Kc1 Bd2+ {[%emt 0:00:21]} 41. Kd1 {[%emt 0:00:05]} Bc3 {[%emt 0:00:22]
} 42. Nxc3 Nxc3+ {[%emt 0:00:01]} 43. Kc1 {[%emt 0:00:31]} Rxg1 {[%emt 0:00:08]
} 44. Rxg1 {[%emt 0:00:03]} Ne2+ {[%emt 0:00:00]} 45. Kd2 {[%emt 0:00:01]} Nxg1
{[%emt 0:00:03]} 46. Kd3 {[%emt 0:00:00]} Nh3 {[%emt 0:00:02]} 47. Kxd4 Nxf4 {
[%emt 0:00:01]} 48. Kc5 {[%emt 0:00:02]} g5 {[%emt 0:00:02]} 49. Kb6 {[%emt 0:
00:00]} g4 {[%emt 0:00:01]} 50. c4 {[%emt 0:00:01]} g3 51. c5 g2 {[%emt 0:00:
02]} 52. c6 {[%emt 0:00:01]} g1=Q+ {[%emt 0:00:04]} 53. Kb7 {[%emt 0:00:01]}
Nd5 {[%emt 0:00:03]} 0-1